Cogmind - Beta 16 @@@ ROGUE MODE // 2025.11.13 @ 01:55:27 Player: puppuppit Result: Destroyed by Hotshot with Improved Heavy Laser Performance ------------- Evolutions (3) 1500 Regions Visited (10) 2000 Robots Destroyed (254) 1270 Value Destroyed (8378) 8378 Prototype IDs (17) 340 Alien Tech Used (0) 0 Bonus (1866) 1866 TOTAL SCORE: 15354 Bonus ------- High Alert Combat Kills 1589 Follower Combat Kills 77 Entered Garrisons 200 Cogmind --------- Core Integrity 0/700 Matter 3/300 Energy 36/100 System Corruption 26% Temperature Warm (149) Movement Hovering (180) Ox2 Location -7/Factory Parts ------- > --- POWER (1) -------- (None) > --- PROPULSION (5) --- Gravmag System > --- UTILITY (4) ------ Medium Storage Unit Advanced Targeting Computer Target Analyzer Weapon Cycler > --- WEAPON (3) ------- Advanced Assault Cannon Gauss Cannon > --- INVENTORY (10) --- Improved Heat Sink Compact Matter Pod (0) Advanced Targeting Computer Advanced Targeting Computer Weapon Cycler Tractor Beam Shock Rifle Gauss Rifle Heavy Missile Launcher Peak State ------------ > --- POWER ------------ Reinforced Deuterium Engine > --- PROPULSION ------- Armored Treads Armored Treads Armored Treads Advanced Treads > --- UTILITY ---------- High-capacity Storage Unit Kinecellerator Hacking Suite Hacking Suite > --- WEAPON ----------- Enhanced Autogun Enhanced Autogun Enhanced Autogun > --- INVENTORY -------- Combat Airjet Combat Airjet Scrap Suit Cooling System High-capacity Matter Pod High-capacity Matter Pod Recoil Stabilizer High-powered Tractor Beam Minigun Enhanced Autogun Gauss Rifle Gauss Rifle Heavy Assault Cannon Heavy Assault Cannon Advanced EMP Blaster Missile Launcher Plasma Cutter [Rating: 45] Favorites ----------- Power Deuterium Engine Engine Deuterium Engine Power Core Light Nuclear Core Propulsion Advanced Treads Treads Advanced Treads Hover Unit Improved Hover Unit Flight Unit Xenon Bombardment Thruster Utility Hacking Suite Device Improved Terrain Scanner Storage High-capacity Storage Unit Processor Targeting Computer Hackware Hacking Suite Protection Hardened Medium Armor Plating Weapon Enhanced Autogun Energy Gun Shock Rifle Ballistic Gun Enhanced Autogun Ballistic Cannon Heavy Assault Cannon Launcher Heavy Missile Launcher Special Weapon Plasma Cutter Impact Weapon Flail Build | -11 -10 -10 -10 -9 -8 -8 -8 -7 -7 -7 ------- Run | Yrd Mat Min Exi Min Mat Gar Mat Fac Was Fac Slots Evolved 6 | . . . . . 4 . . 2 . . Power . | . . . . . . . . . . . Propulsion 3 | . . . . . 1 . . 2 . . Utility 2 | . . . . . 2 . . . . . Weapon 1 | . . . . . 1 . . . . . Parts Attached 114 | 7 4 2 . 1 24 7 6 1 7 55 Power 14 | 1 1 1 . . 2 1 1 . . 7 Engine 8 | 1 1 . . . 1 . 1 . . 4 Core 6 | . . 1 . . 1 1 . . . 3 Reactor . | . . . . . . . . . . . Propulsion 36 | 2 1 . . . 5 1 2 1 1 23 Treads 13 | 2 1 . . . 5 1 2 1 . 1 Leg . | . . . . . . . . . . . Wheel . | . . . . . . . . . . . Hover 19 | . . . . . . . . . 1 18 Flight 4 | . . . . . . . . . . 4 Utility 31 | 2 2 . . . 8 2 1 . 4 12 Device 10 | 1 . . . . 1 1 . . 3 4 Storage 8 | 1 1 . . . 2 . . . 1 3 Processor 5 | . 1 . . . . . . . . 4 Hackware 7 | . . . . . 4 1 1 . . 1 Protection 1 | . . . . . 1 . . . . . Artifact . | . . . . . . . . . . . Weapon 33 | 2 . 1 . 1 9 3 2 . 2 13 Energy Gun 1 | . . . . . . . . . . 1 Energy Cannon . | . . . . . . . . . . . Ballistic Gun 21 | 2 . 1 . 1 7 2 1 . 1 6 Ballistic Cannon 4 | . . . . . . . . . 1 3 Launcher 5 | . . . . . 2 . 1 . . 2 Special Weapon 1 | . . . . . . 1 . . . . Impact Weapon 1 | . . . . . . . . . . 1 Slashing Weapon . | . . . . . . . . . . . Piercing Weapon . | . . . . . . . . . . . Special Melee Weapon . | . . . . . . . . . . . Unidentified Prototypes 1 | . . . . . 1 . . . . . Parts Lost 36 | . . . . 1 . . 3 . 5 27 Power 5 | . . . . . . . . . 1 4 Propulsion 17 | . . . . . . . 3 . . 14 Utility 5 | . . . . . . . . . 1 4 Weapon 9 | . . . . 1 . . . . 3 5 Highest Loss Streak 8 | . . . . 1 . . 3 . 5 8 To Critical Strikes 1 | . . . . . . . . . 1 . Average Backups 14 | . 8 13 15 13 15 19 18 16 9 6 Power . | . . 1 1 . . . . . . . Propulsion 2 | . . 1 1 1 2 3 3 2 . 1 Utility 6 | . 4 7 9 9 7 7 7 6 2 3 Weapon 4 | . 3 4 3 3 5 6 6 7 5 2 Tool/Special . | . . . . . . . . . . . Unused Backups 48 | 1 8 1 1 2 17 2 3 . 5 8 Power 4 | . . . 1 2 1 . . . . . Propulsion 4 | . . . . . 3 . . . 1 . Utility 27 | 1 7 . . . 7 . 3 . 3 6 Weapon 12 | . . 1 . . 6 2 . . 1 2 Tool/Special 1 | . 1 . . . . . . . . . Average Slot Usage (%) 95 | . 99 100 100 100 98 100 98 92 53 79 Engine 6 | . 13 4 . . 7 6 7 7 3 2 Core 2 | . . 9 14 14 1 2 . . . 1 Treads 23 | . 27 28 28 28 26 27 26 30 12 . Hover 3 | . . . . . . . . . . 28 Device 2 | . 12 . . . 1 . . . 6 4 Storage 9 | . 14 14 14 14 9 9 9 7 3 5 Processor 3 | . 1 14 14 14 1 . . . . 10 Hackware 16 | . . . . . 21 26 26 23 15 7 Ballistic Gun 24 | . 27 28 28 28 26 26 26 22 7 7 Peak Build Rating 45 | 9 10 13 14 14 39 44 42 44 45 42 Average Rating 30 | 6 9 11 13 13 34 40 40 44 24 31 On Entrance 21 | . 9 8 13 14 14 39 42 41 44 13 Avg Prop Armor Cover (%) 4 | . . . . . . . . . . 4 Naked Turns . | . . . . . . . . . . . Heaviest Build 72 | 13 30 30 30 30 59 61 72 64 71 34 Greatest Support 82 | 40 40 40 40 40 65 65 64 82 82 39 Greatest Overweight (x) 2 | 1 . . . . . . 2 . 1 2 Average Overweight (x) . | . . . . . . . . . . . Largest Inventory Capacity 20 | 8 15 15 15 15 20 20 20 20 20 10 Average Capacity 15 | 7 11 15 15 15 17 20 20 20 11 8 Most Carried 20 | 2 11 15 15 15 20 20 20 20 20 10 Average Carried 15 | . 8 14 14 14 16 19 19 19 10 7 Final Capacity 20 | 8 15 15 15 15 20 20 20 20 5 10 Final Carried 20 | 2 11 15 15 15 20 20 20 20 5 9 Class Distribution -------------------- 51% | Hacker-Gunner 24% | Mutant 6% | Hacker-Mutant 5% | Gunner 4% | Scavenger-Gunner Dominant Class ---------------- Mutant | -10/Materials Mutant | -10/Mines Mutant | -10/Exiles Mutant | -9/Mines Hacker-Gunner | -8/Materials Hacker-Gunner | -8/Garrison Hacker-Gunner | -8/Materials Hacker-Gunner | -7/Factory Hacker-Mutant | -7/Waste Scavenger-Gunner | -7/Factory Resources | -11 -10 -10 -10 -9 -8 -8 -8 -7 -7 -7 ----------- Run | Yrd Mat Min Exi Min Mat Gar Mat Fac Was Fac Matter Collected 8877 | 412 556 405 . 45 1895 1182 1639 215 455 2073 Remotely 687 | . . . . . 363 . 159 . 165 . Salvage Created 9642 | 207 513 129 . 92 2789 1220 2070 268 255 2099 Parts 545 | 16 38 12 . 5 166 65 107 9 . 127 Haulers Intercepted 7 | . 1 . . . 6 . . . . . Recyclers Shooed 9 | . 2 . . . 3 . 1 . . 3 Parts Field Recycled . | . . . . . . . . . . . Retrieved Matter . | . . . . . . . . . . . Parts Self-Destructed . | . . . . . . . . . . . Prevented . | . . . . . . . . . . . Parts Restored . | . . . . . . . . . . . Kills | -11 -10 -10 -10 -9 -8 -8 -8 -7 -7 -7 ------- Run | Yrd Mat Min Exi Min Mat Gar Mat Fac Was Fac Combat Hostiles Destroyed 165 | . 12 5 . 2 43 26 32 5 1 39 Guns 125 | . 12 5 . 2 37 26 29 5 1 8 Cannons 18 | . . . . . . . . . . 18 AOE 22 | . . . . . 6 . 3 . . 13 Classes Destroyed 19 | 3 4 . . . 5 1 4 . 1 1 Worker 25 | 2 1 . . . 11 . 1 . . 10 Builder 11 | . . . . . 7 . . . . 4 Tunneler 5 | 3 . . . . . . 2 . . . Hauler 7 | . 1 . . . 6 . . . . . Recycler 21 | 1 1 . . 1 7 . 2 . . 9 Mechanic 4 | . . . . . . . 3 . . 1 Operator 1 | . . . . . . . 1 . . . Watcher 15 | . 3 . . . 5 1 1 . . 5 Swarmer 43 | . 7 3 . 2 16 6 . . . 9 Cutter 1 | . . . . . . . 1 . . . Grunt 64 | . 5 2 . . 14 9 19 3 . 12 Brawler 2 | . . . . . . 2 . . . . Duelist 5 | . . . . . 1 . 3 1 . . Protector 1 | . . . . . . . 1 . . . Sentry 26 | . . . . . 9 5 6 . . 6 Hunter 11 | . . . . . 2 4 . 1 . 4 Programmer 7 | . . . . . . . . . . 7 Heavy 3 | . . . . . 1 . 2 . . . Compactor 1 | . . . . . . . . . 1 . Immortal 1 | . . . . . . . . . . 1 Best Kill Streak 14 | 4 4 3 . 2 9 5 5 3 1 14 Combat Bots Only 8 | . 4 3 . 2 4 5 4 3 1 8 Max Kills in Single Turn 6 | 1 1 1 . 2 3 1 2 1 1 6 Gunslinging 1 | . . . . 1 . . 1 . . . Exploded 4 | . . . . . 2 . 1 . . 4 Melee . | . . . . . . . . . . . Uniques/NPCs Destroyed . | . . . . . . . . . . . Combat | -11 -10 -10 -10 -9 -8 -8 -8 -7 -7 -7 -------- Run | Yrd Mat Min Exi Min Mat Gar Mat Fac Was Fac Hostile Shots Fired 730 | . 48 19 . 15 118 94 88 23 5 320 Missed 238 | . 12 4 . 6 39 19 23 4 1 130 Hits 492 | . 36 15 . 9 79 75 65 19 4 190 Melee 15 | . . . . . 2 . 4 . 4 5 Projectile 477 | . 36 15 . 9 77 75 61 19 . 185 Critical Strikes 16 | . . . . . 1 3 3 . 2 7 Damage Taken 7767 | . 352 162 . 143 1262 1040 1498 276 251 2783 Core 1379 | . 70 32 . 36 211 195 129 15 102 589 Absorbed by Shields 72 | . . . . . . . . . . 72 Regen/Repaired (Parts) 1702 | . 57 . . . 1231 . 394 . . 20 Core Remaining (%) 48 | 100 . . . 44 . . 2 . . . Volleys Fired 610 | 18 52 14 . 4 141 85 125 26 23 122 Largest 3 | 2 2 2 . 2 3 3 3 3 3 3 Hottest 119 | 40 40 45 . 45 78 75 86 86 86 119 Shots Fired 1492 | 36 104 28 . 8 412 229 352 68 51 204 Gun 1349 | 36 104 28 . 8 409 225 346 66 37 90 Cannon 109 | . . . . . . . . . 4 105 Launcher 34 | . . . . . 3 4 6 2 10 9 Special . | . . . . . . . . . . . Kinetic 1458 | 36 104 28 . 8 409 225 346 66 41 195 Thermal . | . . . . . . . . . . . Explosive 20 | . . . . . 1 . . . 10 9 Electromagnetic 14 | . . . . . 2 4 6 2 . . Robot Hit Streak 23 | 14 10 5 . 3 23 17 13 9 20 12 Robot Miss Streak 7 | 2 3 4 . 2 7 3 5 4 2 3 Penetration Max 1 | . . . . . 1 . . . . 1 Secondary Targets 21 | . . 1 . 1 5 6 5 2 1 . Max Gunslinging Chain 1 | . . 1 . 1 1 1 1 1 1 . Shots Hit Robots 920 | 23 60 13 . 6 253 140 212 41 42 130 Core Hits 425 | 7 26 8 . 4 116 57 87 13 9 98 Critical Kills 7 | . . 1 . . 1 . 1 . . 4 Critical Parts Destroyed 5 | . . . . . 2 1 . . . 2 Critical Strikes 18 | . . 1 . . 3 1 1 . . 12 Destroy 12 | . . 1 . . 3 1 1 . . 6 Blast 6 | . . . . . . . . . . 6 Melee Attacks 14 | . . . . . . . . . . 14 Impact 14 | . . . . . . . . . . 14 Slashing . | . . . . . . . . . . . Piercing . | . . . . . . . . . . . Sneak Attacks . | . . . . . . . . . . . Combat Hostiles . | . . . . . . . . . . . Follow-up Attacks . | . . . . . . . . . . . Damage Inflicted 22147 | 294 826 224 . 74 4641 2136 4184 706 1627 7435 Guns 13925 | 294 826 224 . 74 4308 2136 3602 627 659 1175 Cannons 3730 | . . . . . . . . . . 3730 Explosions 4429 | . . . . . 333 . 582 79 968 2467 Melee . | . . . . . . . . . . . Ramming 63 | . . . . . . . . . . 63 Kinetic 17655 | 294 826 224 . 74 4308 2136 3602 627 659 4905 Thermal 67 | . . . . . . . 67 . . . Explosive 3583 | . . . . . 148 . . . 968 2467 Electromagnetic 779 | . . . . . 185 . 515 79 . . Impact . | . . . . . . . . . . . Slashing . | . . . . . . . . . . . Piercing . | . . . . . . . . . . . Highest Corruption 26 | . . . . . . 1 . 2 22 26 Average Corruption 12 | . . . . . . 1 . 2 12 22 Corruption Purged 6 | . . . . . . 1 . . . 5 Corruption Blocked . | . . . . . . . . . . . Effects 148 | . . . . . . 17 . 6 13 112 Message Errors 30 | . . . . . . 5 . 3 3 19 Matter Fused 28 | . . . . . . 5 . 1 3 19 Heat Flow Errors 16 | . . . . . . 2 . . 2 12 Energy Discharges 14 | . . . . . . 1 . . 1 12 Parts Rejected 3 | . . . . . . . . . 1 2 Parts Fused 2 | . . . . . . . . . 1 1 Data Loss (minor) 10 | . . . . . . 2 . . . 8 Data Loss (major) 4 | . . . . . . . . . . 4 Misfires 2 | . . . . . . 1 . . . 1 Alerts 3 | . . . . . . . . . . 3 Misdirections 19 | . . . . . . . . . 2 17 Weapon Failures 17 | . . . . . . 1 . 2 . 14 Overload Shots . | . . . . . . . . . . . Overflow Damage 487 | . . . . . 40 . 8 . 39 400 Projectiles 289 | . . . . . . . . . . 289 Explosions 198 | . . . . . 40 . 8 . 39 111 Melee . | . . . . . . . . . . . Knockbacks 20 | . . . . . . . . . . 20 Impact . | . . . . . . . . . . . Kinetic 19 | . . . . . . . . . . 19 Secondary 1 | . . . . . . . . . . 1 Self-Inflicted Damage 226 | . . . . . 25 10 . . 74 117 Shots 7 | . . . . . 2 1 . . 2 2 Rammed 5 | . . . . . . . . . . 5 Targets Rammed 5 | . . . . . . . . . . 5 Kicked . | . . . . . . . . . . . Crushed . | . . . . . . . . . . . Highest Temperature 415 | . 2 4 . 8 265 415 346 220 265 267 Average Temperature 72 | . 2 3 . 6 44 96 98 96 65 60 Received Heat Transfer 1758 | . 102 54 . . 270 243 432 81 . 576 Effects 4 | . . . . . . 1 1 . 2 . Energy Bleed 2 | . . . . . . 1 1 . . . Interference 2 | . . . . . . . . . 2 . Siege Activations . | . . . . . . . . . . . Martial Activations . | . . . . . . . . . . . Shielding Activations . | . . . . . . . . . . . Robots Disrupted . | . . . . . . . . . . . Combat Hostiles . | . . . . . . . . . . . Robots Corrupted . | . . . . . . . . . . . Combat Hostiles . | . . . . . . . . . . . Parts Fried 4 | . . . . . . . 4 . . . Impact Corruptions . | . . . . . . . . . . . Robots Melted . | . . . . . . . . . . . Combat Hostiles . | . . . . . . . . . . . Parts Melted 1 | . . . . . . . 1 . . . Heat Transferred 75 | . . . . . . . 75 . . . Parts Sabotaged . | . . . . . . . . . . . Parts Stolen . | . . . . . . . . . . . Parts Stripped . | . . . . . . . . . . . Power Chain Reactions 3 | . . . . . 1 . 2 . . . Alert | -11 -10 -10 -10 -9 -8 -8 -8 -7 -7 -7 ------- Run | Yrd Mat Min Exi Min Mat Gar Mat Fac Was Fac Maximum Alert Level 4 | . . . . . 3 4 3 2 . 3 Low Security (%) 38 | 100 100 100 . 100 28 . . . 100 32 Level 1 21 | . . . . . 46 16 . 28 . 25 Level 2 13 | . . . . . 20 28 6 71 . 8 Level 3 25 | . . . . . 4 46 93 . . 34 Level 4 . | . . . . . . 8 . . . . Level 5 . | . . . . . . . . . . . High Security . | . . . . . . . . . . . Max Security . | . . . . . . . . . . . Peak Influence 1248 | 15 170 156 . 40 781 1248 938 476 154 1007 Initial 608 | . . 56 . . . 208 608 403 152 . Average 373 | 2 39 32 . 2 289 728 810 416 72 425 Influence Increases 6317 | 30 481 150 . 60 1548 1040 1005 193 34 1776 Destroy 0b10 Robot/C 3280 | . 240 100 . 40 860 520 660 100 . 760 Destroy 0b10 Robot/NC 465 | 30 30 . . 5 180 10 65 . . 145 Destroy Leader 746 | . 58 20 . . 242 30 156 20 . 220 Allied During Kill 48 | . . . . . . . 48 . . . Trap Triggered on 0b10 50 | . 50 . . . . . . . . . Successful Hack 219 | . 27 . . . 47 . . 28 . 117 Select Force Hacks 120 | . 30 . . . 90 . . . . . Disable Machine 255 | . . 30 . 15 45 15 30 . . 120 Anti-Garrison Action 350 | . . . . . . 350 . . . . Destroy Structure 244 | . 1 . . . 24 25 16 . 34 144 Partial Spotted 60 | . . . . . 15 . . . . 45 Lose Combat Pursuer 480 | . 45 . . . 45 90 30 45 . 225 Influence Decreases 5326 | 30 335 296 . 60 1227 113 1366 644 470 785 Entered New Map 1611 | . . 90 . . . 113 640 484 284 . Time Decay 2617 | 30 335 206 . 60 559 . 626 160 116 525 Lost Part 340 | . . . . . . . 30 . 50 260 Lost Ally 90 | . . . . . . . 70 . 20 . Purge Threat 668 | . . . . . 668 . . . . . Squads Dispatched 45 | . 2 1 . . 13 . 9 . . 20 Investigation 10 | . 1 1 . . 3 . . . . 5 Extermination 6 | . . . . . . . . . . 6 Reinforcement 13 | . 1 . . . 1 . 6 . . 5 Assault 3 | . . . . . . . 2 . . 1 Garrison 13 | . . . . . 9 . 1 . . 3 Intercept . | . . . . . . . . . . . Searches Triggered . | . . . . . . . . . . . Unchained Authorized 1 | . . . . . . . . . . 1 Construction Impeded 2 | . . . . . . . . . . 2 Haulers Reinforced 1 | . . . . . . . . . . 1 Active Scanning Responses . | . . . . . . . . . . . Cargo Convoy Interrupts . | . . . . . . . . . . . Stealth | -11 -10 -10 -10 -9 -8 -8 -8 -7 -7 -7 --------- Run | Yrd Mat Min Exi Min Mat Gar Mat Fac Was Fac Distress Signals 9 | . 1 . . . 2 2 1 . . 3 Communications Jammed . | . . . . . . . . . . . Distress Signals . | . . . . . . . . . . . Times Spotted 240 | . 20 4 . 3 51 30 51 6 7 68 Peak Tracking Total 9 | . 4 2 . 3 4 7 5 4 4 9 Tactical Retreats 23 | . 3 . . . 3 3 2 3 1 8 Traps | -11 -10 -10 -10 -9 -8 -8 -8 -7 -7 -7 ------- Run | Yrd Mat Min Exi Min Mat Gar Mat Fac Was Fac Traps Triggered 10 | . 1 . . . . 2 . 2 . 5 Indirectly . | . . . . . . . . . . . Trap Hack Attempts . | . . . . . . . . . . . Triggered . | . . . . . . . . . . . Disarmed . | . . . . . . . . . . . Reprogrammed 17 | . 6 . . . 11 . . . . . Reused 5 | . 5 . . . . . . . . . Traps Extracted . | . . . . . . . . . . . Installed . | . . . . . . . . . . . Triggered 5 | . 5 . . . . . . . . . Machines | -11 -10 -10 -10 -9 -8 -8 -8 -7 -7 -7 ---------- Run | Yrd Mat Min Exi Min Mat Gar Mat Fac Was Fac Machines Disabled 22 | . . 2 . 1 3 6 2 . . 8 Max in Single Turn 2 | . . 1 . 1 1 1 1 . . 2 Garrison Relay 5 | . . . . . . 5 . . . . Machines Repaired . | . . . . . . . . . . . Machines Dismantled 1 | . . . . . . 1 . . . . Machines Sabotaged . | . . . . . . . . . . . Overloaded Fab Kills . | . . . . . . . . . . . Hacking | -11 -10 -10 -10 -9 -8 -8 -8 -7 -7 -7 --------- Run | Yrd Mat Min Exi Min Mat Gar Mat Fac Was Fac Machines Accessed 65 | . 10 1 1 . 18 3 7 3 . 22 Terminals 38 | . 7 . . . 12 3 4 2 . 10 Fabricators 3 | . . . . . . . . . . 3 Repair Stations 7 | . 1 . . . 1 . 1 . . 4 Recycling Units 8 | . 2 . . . 2 . 1 1 . 2 Scanalyzers 5 | . . . . . 2 . 1 . . 2 Garrison Access 2 | . . . . . 1 . . . . 1 Total Hacks 288 | . 34 1 1 . 126 8 39 11 . 68 Successful 210 | . 20 1 1 . 105 3 34 7 . 39 Failed 74 | . 13 . . . 20 5 4 4 . 28 Catastrophic 6 | . 1 . . . . 2 . . . 3 Database Lockouts 4 | . 1 . . . 1 . 1 . . 1 Manual 150 | . 25 . . . 58 4 13 12 . 38 Terminals 151 | . 28 . . . 64 8 10 9 . 32 Fabricators 10 | . . . . . . . . . . 10 Repair Stations 55 | . 3 . . . 30 . 8 . . 14 Recycling Units 15 | . 3 . . . 2 . 4 2 . 4 Scanalyzers 47 | . . . . . 24 . 17 . . 6 Garrison Access 8 | . . . . . 6 . . . . 2 Terminal Hacks 38 | . 4 1 1 . 22 3 . 1 . 6 Record 1 | . . . 1 . . . . . . . Robot Analysis 7 | . 1 . . . 3 . . 1 . 2 Prototype ID Bank 7 | . 1 . . . 5 . . . . 1 Open Door 1 | . . 1 . . . . . . . . Branch Access Points 1 | . 1 . . . . . . . . . Emergency Access Points 1 | . . . . . . 1 . . . . Terminal Index 2 | . . . . . 1 . . . . 1 Unreport Threat 5 | . . . . . 5 . . . . . Locate Traps 2 | . . . . . 1 . . . . 1 Disarm Traps 1 | . . . . . 1 . . . . . Reprogram Traps 5 | . 1 . . . 4 . . . . . Recall Investigation 2 | . . . . . 2 . . . . . Zone Layout 1 | . . . . . . . . . . 1 Garrison Registry 1 | . . . . . . 1 . . . . Security Stations 1 | . . . . . . 1 . . . . Fabricator Hacks 4 | . . . . . . . . . . 4 Load Schematic 3 | . . . . . . . . . . 3 Build 1 | . . . . . . . . . . 1 Repair Station Hacks 45 | . 2 . . . 30 . 6 . . 7 Scan Component 24 | . 1 . . . 15 . 3 . . 5 Repair 21 | . 1 . . . 15 . 3 . . 2 Recycling Unit Hacks 1 | . . . . . . . 1 . . . Retrieve Components 1 | . . . . . . . 1 . . . Scanalyzer 42 | . . . . . 22 . 16 . . 4 Insert Component 17 | . . . . . 11 . 4 . . 2 Analyze 21 | . . . . . 11 . 8 . . 2 Retrieve Study 4 | . . . . . . . 4 . . . Garrison Access Hacks 1 | . . . . . 1 . . . . . Unlock Access 1 | . . . . . 1 . . . . . Unauthorized Hacks 79 | . 14 . . . 30 . 11 6 . 18 Terminals 63 | . 12 . . . 24 . 9 4 . 14 Track 2 | . . . . . 2 . . . . . Assimilate 1 | . . . . . . . 1 . . . Botnet 30 | . 6 . . . 10 . 4 2 . 8 Operators 3 | . 1 . . . 2 . . . . . Skim 27 | . 5 . . . 10 . 4 2 . 6 Fabricators . | . . . . . . . . . . . Repair Stations . | . . . . . . . . . . . Recycling Units 11 | . 2 . . . 2 . 2 2 . 3 Reject 3 | . . . . . . . 1 . . 2 Recyclers 3 | . 1 . . . . . . 1 . 1 Mask 2 | . . . . . . . 1 1 . . Tunnel 3 | . 1 . . . 2 . . . . . Scanalyzers 1 | . . . . . 1 . . . . . Extract 1 | . . . . . 1 . . . . . Garrison Access 4 | . . . . . 3 . . . . 1 Broadcast 1 | . . . . . 1 . . . . . Intercept 1 | . . . . . 1 . . . . . Watchers 2 | . . . . . 1 . . . . 1 Data Cores Recovered . | . . . . . . . . . . . Used . | . . . . . . . . . . . Hacking Detections 56 | . 8 . . . 14 3 6 3 . 22 Full Trace Events 5 | . . . . . . . 1 . . 4 Feedback Events 1 | . . . . . . . . . . 1 Corruption 1 | . . . . . . . . . . 1 Feedback Blocked . | . . . . . . . . . . . Robot Schematics Acquired . | . . . . . . . . . . . Robots Built . | . . . . . . . . . . . Authchips . | . . . . . . . . . . . Time . | . . . . . . . . . . . Total Robot Build Rating . | . . . . . . . . . . . Part Schematics Acquired 20 | . . . . . 15 . 4 . . 1 Parts Built . | . . . . . . . . . . . Authchips . | . . . . . . . . . . . Time 73 | . . . . . . . . . . 73 Total Part Build Rating . | . . . . . . . . . . . Part Studies Acquired 4 | . . . . . . . 4 . . . Parts Repaired 20 | . 1 . . . 15 . 3 . . 1 Time 838 | . 26 . . . 639 . 68 . . 105 Parts Recycled . | . . . . . . . . . . . Recycled Matter . | . . . . . . . . . . . Retrieved Matter . | . . . . . . . . . . . Retrieved Components 7 | . . . . . . . 7 . . . Parts Scanalyzed 17 | . . . . . 11 . 4 . . 2 Part Schematics Acquired 15 | . . . . . 10 . 4 . . 1 Parts Damaged 4 | . . . . . 3 . . . . 1 Bothacking | -11 -10 -10 -10 -9 -8 -8 -8 -7 -7 -7 ------------ Run | Yrd Mat Min Exi Min Mat Gar Mat Fac Was Fac Used RIF Installer . | . . . . . . . . . . . Robots Hacked . | . . . . . . . . . . . Non-combat . | . . . . . . . . . . . Combat . | . . . . . . . . . . . Robot Hacks Applied . | . . . . . . . . . . . Relay Couplers Released 22 | . . . . . . 22 . . . . Machine Destruction 22 | . . . . . . 22 . . . . Fabnet Peak Effective % . | . . . . . . . . . . . Robots Rewired 3 | . . . . . . 3 . . . . Allies Hacked . | . . . . . . . . . . . Hacks Repelled . | . . . . . . . . . . . Allies | -11 -10 -10 -10 -9 -8 -8 -8 -7 -7 -7 -------- Run | Yrd Mat Min Exi Min Mat Gar Mat Fac Was Fac Total Allies 5 | . . . . . . 3 1 . 1 . Largest Group 3 | . . . . . . 3 3 . 1 . Highest-Rated Group 93 | . . . . . . 93 93 . 31 . Highest-Rated Ally 31 | . . . . . . 31 31 . 31 . Initial Warlord ECA Mod 9 | . . . . . . . 9 8 8 8 Total Orders 6 | . . . . . . . 6 . . . STAY 3 | . . . . . . . 3 . . . FOLLOW 3 | . . . . . . . 3 . . . Ally Attacks 77 | . . . . . . . 50 . 27 . Total Damage 1133 | . . . . . . . 693 . 440 . Kills 5 | . . . . . . . 4 . 1 . Allies Corrupted . | . . . . . . . . . . . Allies Melted . | . . . . . . . . . . . Intel | -11 -10 -10 -10 -9 -8 -8 -8 -7 -7 -7 ------- Run | Yrd Mat Min Exi Min Mat Gar Mat Fac Was Fac Active Infowar (turns) 1331 | 61 1270 . . . . . . . . . Terrain 1331 | 61 1270 . . . . . . . . . Robot Analysis Total 7 | . 1 . . . 3 . . 1 . 2 Derelict Logs Recovered 6 | . . 3 . 3 . . . . . . Drone Launches . | . . . . . . . . . . . Drone Recoveries . | . . . . . . . . . . . Exploration | -11 -10 -10 -10 -9 -8 -8 -8 -7 -7 -7 ------------- Run | Yrd Mat Min Exi Min Mat Gar Mat Fac Was Fac Turns Passed 14447 | 163 1370 906 303 761 4877 1595 2142 335 273 1722 Spaces Moved 8754 | 72 724 536 187 465 2398 836 984 168 279 2105 Core 566 | 21 . . . . . . . . 236 309 Treads 6381 | 51 724 536 187 465 2398 836 984 168 31 1 Legs . | . . . . . . . . . . . Wheels . | . . . . . . . . . . . Hover 1771 | . . . . . . . . . 12 1759 Flight 36 | . . . . . . . . . . 36 Fastest Speed 34 | 50 160 160 160 160 153 153 153 163 50 34 Average Speed 131 | 134 160 160 160 160 157 155 176 163 64 50 Slowest Speed 305 | 160 160 160 160 160 163 158 305 163 163 180 Overloaded Moves . | . . . . . . . . . . . Propulsion Burnouts . | . . . . . . . . . . . Robots Hopped . | . . . . . . . . . . . Potential Cave-ins 3 | . . . . . . . . . 3 . Cave-ins Triggered . | . . . . . . . . . . . Exploration Rate (%) 66 | 4 93 95 54 96 97 84 48 7 100 48 Regions Visited 10 Branch Regions 3 Pre-discovered Areas 11 | . 2 2 1 2 4 . . . . . Known Exits Taken 5 | . 1 1 . 1 1 . 1 . . . Unknown Exits Taken 2 | 1 . . 1 . . . . . . . Scrap Searched 3 | . . 1 . 2 . . . . . . Spaces Dug 25 | . . . . . . 1 . . . 24 Terrain Destroyed 218 | . . . . . 10 1 7 . 56 144 Melee 5 | . . . . . . . . . . 5 Projectile 29 | . . . . . 1 1 . . 4 23 AOE 184 | . . . . . 9 . 7 . 52 116 Terrain Rammed . | . . . . . . . . . . . Walls Destroyed . | . . . . . . . . . . . Machines Disabled . | . . . . . . . . . . . Actions | -11 -10 -10 -10 -9 -8 -8 -8 -7 -7 -7 --------- Run | Yrd Mat Min Exi Min Mat Gar Mat Fac Was Fac Total 10797 | 100 835 557 191 476 3305 1032 1260 202 335 2504 Wait 935 | . 25 . . . 643 41 105 3 11 107 Move 8745 | 71 723 535 186 464 2397 835 983 168 278 2105 Hop . | . . . . . . . . . . . Pick Up 129 | 3 17 4 2 3 45 12 11 1 2 29 Fast Attach 66 | 7 4 . . . 9 1 4 . 6 35 Attach 43 | . 1 . . 1 4 1 9 1 4 22 Detach 32 | . 1 . . . . 2 7 . 5 17 Swap 83 | . 2 2 1 1 28 17 8 3 4 17 Drop 104 | 1 10 2 2 3 38 12 8 . 2 26 Fire 610 | 18 52 14 . 4 141 85 125 26 23 122 Melee 14 | . . . . . . . . . . 14 Ram 5 | . . . . . . . . . . 5 Kick . | . . . . . . . . . . . Crush . | . . . . . . . . . . . Escape Stasis 5 | . . . . . . . . . . 5 Rewire 22 | . . . . . . 22 . . . . Trap . | . . . . . . . . . . . Miscellaneous 4 | . . . . . . 4 . . . . Route ------- -11/Scrapyard -10/Materials (discovered 6 exits: [*Mat x3] / *Min x2 / Sub) -10/Mines (discovered 3 exits: [*Mat x2] / *Exi) -10/Exiles -9/Mines (discovered 2 exits: *Mat x2) -8/Materials (discovered 5 exits: *Fac x3 / [*Sto] / Gar) -8/Garrison (discovered 3 exits: *Mat x3) -8/Materials (discovered 4 exits: *Fac x2 / [*Sto x2]) -7/Factory -7/Waste -7/Factory (discovered 4 exits: *Fac x2 / *Low x2) History --------- Turn | Location | Event 8 | -11/Scrapyard | Discovered new exit (range 16) 164 | -11/Scrapyard | Entered Materials 306 | -10/Materials | Build established: Mutant 635 | -10/Materials | Central database locked down 635 | -10/Materials | Identified exit to Mines 674 | -10/Materials | Discovered new exit (range 16) 778 | -10/Materials | Repaired Lgt. Treads 1004 | -10/Materials | Discovered new exit (range 12) 1217 | -10/Materials | Learned location of Storage (-8) 1260 | -10/Materials | Discovered new exit (range 7) 1283 | -10/Materials | Learned Storage stockpile data 1339 | -10/Materials | Identified exit to Subcaves 1534 | -10/Materials | Entered Mines 1602 | -10/Mines | Learned location of Mines (-9) 1742 | -10/Mines | Met a Derelict shopkeep closing up shop 1946 | -10/Mines | Discovered new exit (range 10) 2078 | -10/Mines | Discovered new exit (range 16) 2190 | -10/Mines | Identified exit to Exiles 2430 | -10/Mines | Deemed a non-threat by the Exiles lab entrance 2440 | -10/Mines | Entered Exiles 2493 | -10/Exiles | Met 8R-AWN 2519 | -10/Exiles | Met EX-HEX 2581 | -10/Exiles | Met EX-DEC 2591 | -10/Exiles | Learned location of Zion (-6) 2627 | -10/Exiles | Met EX-BIN 2722 | -10/Exiles | Discovered new exit (range 14) 2743 | -10/Exiles | Entered Mines 2759 | -9/Mines | Identified exit to Materials 2801 | -9/Mines | Discovered exit to Materials (range 9) 2816 | -9/Mines | Core integrity fell below 50% 3084 | -9/Mines | Found a Scrap Suit stashed away for nefarious purposes 3087 | -9/Mines | Found Scrap Suit 3406 | -9/Mines | Received a Rocket Launcher from a helpful Derelict 3504 | -9/Mines | Entered Materials 3504 | -8/Materials | Evolved 4 slots: Propulsion x1, Utility x2, Weapon x1 3505 | -8/Materials | Discovered new exit (range 8) 3583 | -8/Materials | Repaired Lgt. Treads 3611 | -8/Materials | Repaired Lgt. Treads 3716 | -8/Materials | Garrison activated, responded to threat 3845 | -8/Materials | Identified exit to Garrison 3879 | -8/Materials | Central database locked down 4061 | -8/Materials | Build established: Gunner 4121 | -8/Materials | Discovered new exit (range 16) 4832 | -8/Materials | Discovered new exit (range 16) 4849 | -8/Materials | Build established: Hacker-Gunner 5061 | -8/Materials | Learned location of 1 exit from Recycling 5240 | -8/Materials | Learned Storage emergency access door positions 5280 | -8/Materials | Learned 2 Storage zone layouts 5321 | -8/Materials | Discovered new exit (range 16) 5329 | -8/Materials | Learned Storage garrison access intel 6159 | -8/Materials | Garrison activated, responded to threat 6582 | -8/Materials | Garrison activated, responded to threat 7360 | -8/Materials | Learned Factory security intel 7511 | -8/Materials | Learned Storage emergency access door positions 7556 | -8/Materials | Learned Storage emergency access door positions 7595 | -8/Materials | Learned Factory emergency access door positions 7741 | -8/Materials | Repaired Adv. Treads 7780 | -8/Materials | Repaired Arm. Treads 7841 | -8/Materials | Repaired Enh. Autogun 7896 | -8/Materials | Repaired Corrupted Missile Launcher 7935 | -8/Materials | Repaired Deuterium Engine 7974 | -8/Materials | Repaired Adv. Treads 8013 | -8/Materials | Repaired Hrd. Medium Armor Plating 8052 | -8/Materials | Repaired Arm. Treads 8092 | -8/Materials | Repaired Adv. Treads 8153 | -8/Materials | Repaired Enh. Autogun 8220 | -8/Materials | Repaired Enh. Autogun 8269 | -8/Materials | Repaired Gauss Rifle 8314 | -8/Materials | Repaired Gauss Rifle 8381 | -8/Materials | Entered Garrison 8660 | -8/Garrison | Garrison Relay disabled 8731 | -8/Garrison | Core integrity fell below 50% 8767 | -8/Garrison | Triggered checkpoint 8815 | -8/Garrison | Triggered checkpoint 8856 | -8/Garrison | Garrison Relay disabled 8889 | -8/Garrison | Discovered new exit (range 14) 9131 | -8/Garrison | Discovered new exit (range 11) 9230 | -8/Garrison | Discovered new exit (range 72) 9230 | -8/Garrison | Discovered new exit (range 13) 9230 | -8/Garrison | Discovered new exit (range 73) 9437 | -8/Garrison | Triggered checkpoint 9470 | -8/Garrison | Garrison Relay disabled 9767 | -8/Garrison | Garrison Relay disabled 9807 | -8/Garrison | Learned Materials security intel 9927 | -8/Garrison | Garrison Relay disabled 9976 | -8/Garrison | Entered Materials 9976 | -8/Materials | Accompanied by 3 allies 9977 | -8/Materials | Identified exit to Factory 10231 | -8/Materials | Discovered new exit (range 4) 10354 | -8/Materials | Repaired Adv. Treads 10376 | -8/Materials | First assault squad dispatched 10385 | -8/Materials | Repaired Enh. Autogun 10405 | -8/Materials | Repaired Adv. Treads 10511 | -8/Materials | Discovered new exit (range 14) 10788 | -8/Materials | Core integrity fell below 20% 10973 | -8/Materials | Lost 3 parts (3n) 11217 | -8/Materials | Central database locked down 11400 | -8/Materials | Garrison activated, responded to threat 12118 | -8/Materials | Entered Factory 12118 | -7/Factory | Evolved 2 slots: Propulsion x2 12119 | -7/Factory | Identified exit to Lower Caves 12453 | -7/Factory | Sucked down chute 12453 | -7/Factory | Entered Waste 12454 | -7/Waste | Met a frightened Derelict 12468 | -7/Waste | EMP discharged 12477 | -7/Waste | Spotted C-40 Crusher 12496 | -7/Waste | Allies destroyed C-40 Crusher 12507 | -7/Waste | Spotted C-40 Crusher 12509 | -7/Waste | Spotted C-40 Crusher 12526 | -7/Waste | Spotted C-40 Crusher 12527 | -7/Waste | Destroyed C-40 Crusher 12552 | -7/Waste | Spotted C-40 Crusher 12557 | -7/Waste | Crushed by Compactor (1 part destroyed, 2 dropped) 12560 | -7/Waste | Crushed by Compactor (1 part destroyed, 2 dropped) 12563 | -7/Waste | Crushed by Compactor (1 part destroyed, 1 dropped) 12568 | -7/Waste | EMP discharged 12568 | -7/Waste | System corruption reached 10% 12585 | -7/Waste | Crushed by Compactor (1 part destroyed, 2 dropped) 12616 | -7/Waste | Lost 5 parts (1p1u3w) 12626 | -7/Waste | Spotted C-40 Crusher 12641 | -7/Waste | Discovered new exit (range 11) 12668 | -7/Waste | EMP discharged 12726 | -7/Waste | Entered Factory 12818 | -7/Factory | Build established: Hacker-Mutant 13231 | -7/Factory | Central database locked down 13246 | -7/Factory | Unchained authorized (CL-0N3) 13305 | -7/Factory | Destroyed 8 combat bots 13366 | -7/Factory | Identified exit to Factory 13408 | -7/Factory | A-02 Transporter reconstituted as Immortal 13408 | -7/Factory | Spotted Immortal 13417 | -7/Factory | Learned Hub_04(d) trap positions 13426 | -7/Factory | Learned location of 3 exits from Factory 13428 | -7/Factory | Learned 2 Lower Caves zone layouts 13429 | -7/Factory | Learned location of 2 exits from Archives 13430 | -7/Factory | Learned location of 1 exit from Cetus 13431 | -7/Factory | Learned location of 1 exit from Extension 13441 | -7/Factory | Learned 4 Upper Caves zone layouts 13459 | -7/Factory | Learned Extension trap positions 13538 | -7/Factory | Lost 5 parts (1p2n2u) 13701 | -7/Factory | Destroyed Immortal 13701 | -7/Factory | Immortal reconstituted as CL-0N3 13704 | -7/Factory | Lost 3 parts (1n2w) 13773 | -7/Factory | Destroyed 8 combat bots 13787 | -7/Factory | Core integrity fell below 50% 13859 | -7/Factory | Garrison activated, responded to threat 13926 | -7/Factory | First assault squad dispatched 13950 | -7/Factory | Lost 8 parts (1p5n2w) 14060 | -7/Factory | Repaired Broken Gravmag System 14146 | -7/Factory | G-47 Trooper reconstituted as Hotshot 14146 | -7/Factory | Spotted Hotshot 14210 | -7/Factory | Build established: Scavenger-Mutant 14217 | -7/Factory | Core integrity fell below 20% 14400 | -7/Factory | Discovered exit to Factory (range 12) 14448 | -7/Factory | Destroyed by Hotshot with Improved Heavy Laser Last Messages --------------- 14429_ Dropped Lgt. Ion Engine. 14432_ R-06 Scavenger collects Gravmag System. 14433_ O-24 Administrator: "IFF HANDSHAKE FAILED. SECURING TERMINAL." 14436_ U-05 Engineer builds a Wall. 14436_ Slug penetrates Wall. 14436_ Gravmag System destroyed. 14439_ Critical hit (Burn: +37). 14441_ U-05 Engineer lays Concrete. 14442_ Slug penetrates Wall. 14442_ U-05 Engineer builds a Wall. 14443_ U-05 Engineer lays Concrete. 14444_ U-05 Engineer builds a Wall. 14444_ U-05 Engineer lays Concrete. 14445_ Penetrated by Slug. 14445_ U-05 Engineer lays Concrete. 14446_ System corrupted: Heat flow error (+195). 14446_ U-05 Engineer builds a Wall. 14447_ U-05 Engineer lays Concrete. 14448_ Penetrated by Slug. Map ----- +----------------------------------------------------+ | ################ ###+##### # #??# # | | # ! ####+# | | ########### | | #?????????#!! | | % #?????????#!! * | | #?????????#!! | | ################ ###############?????????##### | | ?????#?????? # #???????????????????????????? | | ???????????? # #???????????????????????????? | | ???????????"" # #???????????????????????????? | | ????????? """ # # ??????????????????????????? | | ????????# """ # + "????????????????????????? | | ????????# # # "" ?????????????????????? | | ????????# """ # # "" ????????????????????? | | ????????# """ # #? ????????????????????? | | ????????# """ # #? ????????????????????? | | ????????# # #?? ???????????????????? | | ????????# """ #^ #??? ???????????????????? | | ????????# """ + #??? ???????????????????? | | ????????# """ ; #????###+#########??????????? | | ????????# # ######?# % #??????????? | | ????????######## ### ### #??????????? | | ????????# ku #"" % """ #??????????? | | ? ??????# g % #" """ #??????????? | | ? ?????# " * """ #??????????? | | ! ""??+ u @ #"" #??????????? | | ""??# uu t #"" #??????????? | | ?# ######## #??????????? | | #" ## ## # ## r h####+######??????????? | | % # ????# = #######+#####?? | | % #???????# ? | | < =% #???????# ? | | % % #???????# r ? | | ? % [ #???????# * #######+#####?? | | ????? # #???????##########;######??????????? | | ????????# / ###+######## #??????????? | | ????????# + #??????????? | | ????????# # #??????????? | | ????????# + #??????????? | | ????????# ##### #??????????? | | ????????# #???# #??????????? | | ????????##########+#"##### #??????????? | | ????????????# """" # #??????????? | | ????????????# "F " # #??????????? | | ????????????# # #??????????? | | ????????????# """ # #??????????? | | ????????????# """"" # #??????????? | | ????????????# """"" ##############??????????? | | ????????????# #???????????????????????? | | ????????????# #???????????????????????? | +----------------------------------------------------+ Best States ------------- Heat Dissipation 56 Energy Generation 18 Energy Capacity 310 Matter Stores 394 Matter Capacity 500 Sight Range 16 Terrain Scan Range 16 Terrain Scan Density 10 Armor Coverage 225 Weapon Cycling 15 Evasion (%) 64 Targeting Accuracy 8 Target Analysis 7 Recoil Reduction 4 Kinecelleration 30 Offensive Hacking 30 Defensive Hacking 10 Item Schematics ----------------- Recoil Stabilizer | -8/Materials | Scanalyzed Adv. EMP Blaster | -8/Materials | Scanalyzed Adv. Visual Processing Unit | -8/Materials | Scanalyzed Weapon Shielding | -8/Materials | Scanalyzed Hrd. Medium Armor Plating | -8/Materials | Scanalyzed Gauss Rifle | -8/Materials | Scanalyzed Enh. Autogun | -8/Materials | Scanalyzed Hpw. Tractor Beam | -8/Materials | Scanalyzed Targeting Computer | -8/Materials | Scanalyzed Cooling System | -8/Materials | Scanalyzed Arm. Wheel | -8/Materials | Extracted Hover Unit | -8/Materials | Extracted Mni. Grenade Launcher | -8/Materials | Extracted Mace | -8/Materials | Extracted Imp. Sensor Array | -8/Materials | Extracted Hvy. Assault Cannon | -8/Materials | Scanalyzed Cmb. Airjet | -8/Materials | Scanalyzed Plasma Cutter | -8/Materials | Scanalyzed Graphene Brace | -8/Materials | Scanalyzed Gravmag System | -7/Factory | Scanalyzed Robot Schematics ------------------ None Fabricated ------------ Nothing Repaired ---------- Lgt. Treads | 59% | -10/Materials Lgt. Treads | 13% | -8/Materials Lgt. Treads | 32% | -8/Materials Adv. Treads | 17% | -8/Materials Arm. Treads | 19% | -8/Materials Enh. Autogun | 23% | -8/Materials Missile Launcher | 96% | -8/Materials | Corrupted Deuterium Engine | 45% | -8/Materials Adv. Treads | 40% | -8/Materials Hrd. Medium Armor Plating | 51% | -8/Materials Arm. Treads | 60% | -8/Materials Adv. Treads | 61% | -8/Materials Enh. Autogun | 91% | -8/Materials Enh. Autogun | 95% | -8/Materials Gauss Rifle | 75% | -8/Materials Gauss Rifle | 94% | -8/Materials Adv. Treads | 12% | -8/Materials Enh. Autogun | 15% | -8/Materials Adv. Treads | 35% | -8/Materials Gravmag System | 55% | -7/Factory | Broken Studied --------- Hvy. Assault Cannon | -8/Materials | Hacked Plasma Cutter | -8/Materials | Hacked Arm. Treads | -8/Materials | Hacked Missile Launcher | -8/Materials | Hacked Alien Tech Used ----------------- None Achievements -------------- Ghost 'Em Physics Hates This One Trick Challenges ------------ None Game ------ Seed VisualSingularityCharger Manual? 0 Play Time 01:40:53 Cumulative 618.3 hours Start 2025.11.13 @ 00:12:58 End 2025.11.13 @ 01:55:27 Sessions 1 Manual Loads 0 Difficulty Rogue Special Mode None Game No. 310 Rogue 310 Adventurer 0 Explorer 0 Win Type - Total 7 Types 3/0/2/1/0/0/0/0/0/1 Lore% 87 Gallery% 78 Achievement% 45 Wizard Run 0 Options --------- Layout 2 ASCII 0 Keyboard 1 Movement Vi Keybinds 0 Fullscreen 1 Font 16/SmallcapsGlow Map View 55x47 Zoom Use 0% Tactical HUD 1 Map Filters NONE Filters NONE Steam 0 RUN: 920239e3-e981-47cf-ab38-fc5949802c3a